fUST/lending_fUST_20260525
["ID","MTS","AMOUNT","RATE_DAILY","PERIOD"]
[422968237,1779693032000,-92.96650791,0.00010682,2]
[422968239,1779693032000,-306.69617459,0.00010682,2]
[422968235,1779693032000,-408.49294553,0.00010682,2]
[422968227,1779693032000,-500.0,0.00010682,2]
[422968241,1779693032000,-590.04,0.00010682,2]
[422968322,1779693038000,-500.0,0.00010683,2]
[422968318,1779693038000,-500.0,0.00010683,2]
[422968314,1779693038000,-500.0,0.00010683,2]
[422968315,1779693038000,-500.0,0.00010683,2]
[422968320,1779693038000,-514.30127526,0.00010683,2]
[422968313,1779693038000,-645.87677832,0.00010682,2]
[422968312,1779693038000,-500.0,0.00010682,2]
[422968321,1779693038000,-500.0,0.00010683,2]
[422968310,1779693038000,-500.0,0.00010682,2]
[422968311,1779693038000,-155.31268597,0.00010682,2]
[422968301,1779693038000,-500.0,0.00010681,2]
[422968302,1779693038000,-238.26092799,0.00010682,2]
[422968306,1779693038000,-500.0,0.00010682,2]
[422968303,1779693038000,-447.25928219,0.00010682,2]
[422968299,1779693038000,-2289.156648,0.00010575,2]
[422968305,1779693038000,-500.0,0.00010682,2]
[422968304,1779693038000,-500.0,0.00010682,2]
[422968309,1779693038000,-1772.91,0.00010682,2]
[422968307,1779693038000,-500.0,0.00010682,2]
[422968300,1779693038000,-150.0,0.0001068,2]
[422968298,1779693038000,-820.992352,0.00010575,2]
[422968317,1779693038000,-500.0,0.00010683,2]
[422968308,1779693038000,-500.0,0.00010682,2]
[422968316,1779693038000,-500.0,0.00010683,2]
[422968327,1779693038000,-612.40505079,0.00010683,2]
[422968325,1779693038000,-267.473258,0.00010683,2]
[422968319,1779693038000,-234.53,0.00010683,2]
[422968346,1779693038000,-157.3263091,0.00010683,2]
[422968342,1779693038000,-500.0,0.00010683,2]
[422968341,1779693038000,-500.0,0.00010683,2]
[422968339,1779693038000,-500.0,0.00010683,2]
[422968344,1779693038000,-98.73391248,0.00010683,2]
[422968336,1779693038000,-500.0,0.00010683,2]
[422968338,1779693038000,-500.0,0.00010683,2]
[422968340,1779693038000,-500.0,0.00010683,2]
[422968345,1779693038000,-423.13608752,0.00010683,2]
[422968337,1779693038000,-500.0,0.00010683,2]
[422968343,1779693038000,-218.14,0.00010683,2]
[422968335,1779693038000,-500.0,0.00010683,2]
[422968323,1779693038000,-500.0,0.00010683,2]
[422968332,1779693038000,-500.0,0.00010683,2]
[422968328,1779693038000,-500.0,0.00010683,2]
[422968329,1779693038000,-614.38,0.00010683,2]
[422968326,1779693038000,-526.60206336,0.00010683,2]
[422968324,1779693038000,-500.0,0.00010683,2]
[422968330,1779693038000,-500.0,0.00010683,2]
[422968333,1779693038000,-500.0,0.00010683,2]
[422968331,1779693038000,-425.55,0.00010683,2]
[422968334,1779693038000,-500.0,0.00010683,2]
[422968347,1779693039000,-18.14522174,0.00010683,2]
[422968397,1779693043000,-500.0,0.00010683,2]
[422968405,1779693043000,-500.0,0.00010683,2]
[422968401,1779693043000,-500.0,0.00010683,2]
[422968400,1779693043000,-500.0,0.00010683,2]
[422968402,1779693043000,-500.0,0.00010683,2]
[422968399,1779693043000,-500.0,0.00010683,2]
[422968415,1779693043000,-500.0,0.00010683,2]
[422968406,1779693043000,-500.0,0.00010683,2]
[422968404,1779693043000,-500.0,0.00010683,2]
[422968407,1779693043000,-1000.0,0.00010683,2]
[422968411,1779693043000,-500.0,0.00010683,2]
[422968408,1779693043000,-500.0,0.00010683,2]
[422968414,1779693043000,-500.0,0.00010683,2]
[422968398,1779693043000,-500.0,0.00010683,2]
[422968409,1779693043000,-500.0,0.00010683,2]
[422968403,1779693043000,-500.0,0.00010683,2]
[422968383,1779693043000,-500.0,0.00010683,2]
[422968396,1779693043000,-500.0,0.00010683,2]
[422968410,1779693043000,-500.0,0.00010683,2]
[422968379,1779693043000,-188.64822852,0.00010683,2]
[422968381,1779693043000,-500.0,0.00010683,2]
[422968382,1779693043000,-500.0,0.00010683,2]
[422968380,1779693043000,-135.88024064,0.00010683,2]
[422968390,1779693043000,-500.0,0.00010683,2]
[422968384,1779693043000,-623.93,0.00010683,2]
[422968387,1779693043000,-500.0,0.00010683,2]
[422968389,1779693043000,-500.0,0.00010683,2]
[422968388,1779693043000,-500.0,0.00010683,2]
[422968385,1779693043000,-637.94,0.00010683,2]
[422968386,1779693043000,-500.0,0.00010683,2]
[422968391,1779693043000,-500.0,0.00010683,2]
[422968392,1779693043000,-500.0,0.00010683,2]
[422968393,1779693043000,-500.0,0.00010683,2]
[422968394,1779693043000,-500.0,0.00010683,2]
[422968412,1779693043000,-500.0,0.00010683,2]
[422968395,1779693043000,-500.0,0.00010683,2]
[422968416,1779693043000,-500.0,0.00010683,2]
[422968451,1779693043000,-556.47,0.00010683,2]
[422968441,1779693043000,-499.46134082,0.00010683,2]
[422968439,1779693043000,-500.0,0.00010683,2]
[422968437,1779693043000,-500.0,0.00010683,2]
[422968436,1779693043000,-500.0,0.00010683,2]
[422968440,1779693043000,-500.0,0.00010683,2]
[422968444,1779693043000,-199.91306992,0.00010683,2]
[422968445,1779693043000,-300.08693008,0.00010683,2]
[422968443,1779693043000,-299.56836259,0.00010683,2]
[422968446,1779693043000,-500.0,0.00010683,2]
[422968448,1779693043000,-500.0,0.00010683,2]
[422968449,1779693043000,-500.0,0.00010683,2]
[422968447,1779693043000,-499.46132687,0.00010683,2]
[422968452,1779693043000,-500.0,0.00010683,2]
[422968413,1779693043000,-500.0,0.00010683,2]
[422968438,1779693043000,-500.0,0.00010683,2]
[422968435,1779693043000,-625.1,0.00010683,2]
[422968450,1779693043000,-500.0,0.00010683,2]
[422968434,1779693043000,-500.0,0.00010683,2]
[422968433,1779693043000,-500.0,0.00010683,2]
[422968420,1779693043000,-501.08503337,0.00010683,2]
[422968417,1779693043000,-500.0,0.00010683,2]
[422968421,1779693043000,-500.0,0.00010683,2]
[422968430,1779693043000,-500.0,0.00010683,2]
[422968426,1779693043000,-500.0,0.00010683,2]
[422968424,1779693043000,-500.0,0.00010683,2]
[422968427,1779693043000,-500.0,0.00010683,2]
[422968418,1779693043000,-501.51039131,0.00010683,2]
[422968422,1779693043000,-500.46082791,0.00010683,2]
[422968425,1779693043000,-500.0,0.00010683,2]
[422968423,1779693043000,-500.52660416,0.00010683,2]
[422968428,1779693043000,-593.5,0.00010683,2]
[422968432,1779693043000,-500.0,0.00010683,2]
[422968442,1779693043000,-200.8052217,0.00010683,2]
[422968419,1779693043000,-560.72834009,0.00010683,2]
[422968431,1779693043000,-500.0,0.00010683,2]
[422968469,1779693044000,-500.0,0.00010683,2]
[422968468,1779693044000,-500.0,0.00010683,2]
[422968463,1779693044000,-500.0,0.00010683,2]
[422968470,1779693044000,-500.0,0.00010683,2]
[422968462,1779693044000,-500.0,0.00010683,2]
[422968458,1779693044000,-500.29268445,0.00010683,2]
[422968455,1779693044000,-475.59640564,0.00010683,2]
[422968459,1779693044000,-500.0,0.00010683,2]
[422968456,1779693044000,-500.28470861,0.00010683,2]
[422968453,1779693044000,-500.20973931,0.00010683,2]
[422968457,1779693044000,-500.0,0.00010683,2]
[422968454,1779693044000,-500.0,0.00010683,2]
[422968460,1779693044000,-500.0,0.00010683,2]
[422968467,1779693044000,-500.0,0.00010683,2]
[422968461,1779693044000,-499.47667092,0.00010683,2]
[422968474,1779693044000,-500.0,0.00010683,2]
[422968465,1779693044000,-500.0,0.00010683,2]
[422968481,1779693044000,-146.39976619,0.00010683,2]
[422968476,1779693044000,-331.87846588,0.00010683,2]
[422968479,1779693044000,-500.41799398,0.00010683,2]
[422968475,1779693044000,-168.12153412,0.00010683,2]
[422968480,1779693044000,-353.60023381,0.00010683,2]
[422968466,1779693044000,-500.0,0.00010683,2]
[422968478,1779693044000,-500.0,0.00010683,2]
[422968471,1779693044000,-500.0,0.00010683,2]
[422968473,1779693044000,-500.0,0.00010683,2]
[422968482,1779693044000,-500.0,0.00010683,2]
[422968483,1779693044000,-13.37523291,0.00010683,2]
[422968472,1779693044000,-500.0,0.00010683,2]
[422968464,1779693044000,-500.0,0.00010683,2]
[422968477,1779693044000,-500.0,0.00010683,2]
[422968485,1779693046000,-159.37040362,0.00010576,2]
[422968487,1779693046000,-487.10950807,0.00010683,2]
[422968489,1779693046000,-500.0,0.00010683,2]
[422968486,1779693046000,-4840.62959638,0.00010576,2]
[422968488,1779693046000,-500.0,0.00010683,2]
[422968490,1779693046000,-396.48459397,0.00010683,2]
[422968496,1779693545000,-151.0,8.364e-05,2]
[422968499,1779693598000,-151.0,8.113e-05,2]
[422968503,1779693652000,-500.0,8.536e-05,2]
[422968515,1779693671000,-500.0,8.536e-05,2]
[422968549,1779693945000,-151.0,7.371e-05,2]
[422968548,1779693945000,-151.0,7.15e-05,2]
[422968552,1779693946000,-500.0,7.598e-05,2]
[422968551,1779693946000,-1157.0,7.597e-05,2]
[422968553,1779693946000,-500.0,7.598e-05,2]
[422968550,1779693946000,-300.0,7.597e-05,2]
[422968556,1779693946000,-500.0,7.598e-05,2]
[422968555,1779693946000,-500.0,7.598e-05,2]
[422968557,1779693946000,-500.0,7.598e-05,2]
[422968558,1779693946000,-241.0,7.598e-05,2]
[422968554,1779693946000,-500.0,7.598e-05,2]
[422968573,1779693947000,-500.0,7.598e-05,2]
[422968571,1779693947000,-523.46421229,7.598e-05,2]
[422968570,1779693947000,-271.18546878,7.598e-05,2]
[422968569,1779693947000,-228.81453122,7.598e-05,2]
[422968568,1779693947000,-500.0,7.598e-05,2]
[422968567,1779693947000,-512.18546878,7.598e-05,2]
[422968565,1779693947000,-500.0,7.598e-05,2]
[422968562,1779693947000,-500.0,7.598e-05,2]
[422968564,1779693947000,-500.0,7.598e-05,2]
[422968563,1779693947000,-500.0,7.598e-05,2]
[422968559,1779693947000,-259.0,7.598e-05,2]
[422968561,1779693947000,-500.0,7.598e-05,2]
[422968560,1779693947000,-500.0,7.598e-05,2]
[422968572,1779693947000,-500.0,7.598e-05,2]
[422968566,1779693947000,-500.0,7.598e-05,2]
[422968575,1779693947000,-500.0,7.598e-05,2]
[422968577,1779693947000,-500.0,7.598e-05,2]
[422968574,1779693947000,-500.0,7.598e-05,2]
[422968576,1779693947000,-500.0,7.598e-05,2]
[422968590,1779693947000,-294.59828288,7.598e-05,2]
[422968588,1779693947000,-500.0,7.598e-05,2]
[422968589,1779693947000,-500.0,7.598e-05,2]
[422968587,1779693947000,-500.0,7.598e-05,2]
[422968586,1779693947000,-500.0,7.598e-05,2]
[422968585,1779693947000,-500.0,7.598e-05,2]
[422968591,1779693947000,-500.0,7.598e-05,2]
[422968583,1779693947000,-290.50121778,7.598e-05,2]
[422968582,1779693947000,-500.0,7.598e-05,2]
[422968581,1779693947000,-294.64968107,7.598e-05,2]
[422968578,1779693947000,-500.0,7.598e-05,2]
[422968579,1779693947000,-500.0,7.598e-05,2]
[422968580,1779693947000,-205.35031893,7.598e-05,2]
[422968584,1779693947000,-500.0,7.598e-05,2]
[422968601,1779693948000,-500.0,7.598e-05,2]
[422968602,1779693948000,-500.0,7.598e-05,2]
[422968599,1779693948000,-500.0,7.598e-05,2]
[422968600,1779693948000,-500.0,7.598e-05,2]
[422968597,1779693948000,-500.0,7.598e-05,2]
[422968593,1779693948000,-379.74918173,7.598e-05,2]
[422968595,1779693948000,-500.0,7.598e-05,2]
[422968594,1779693948000,-500.0,7.598e-05,2]
[422968596,1779693948000,-500.0,7.598e-05,2]
[422968592,1779693948000,-120.25081827,7.598e-05,2]
[422968603,1779693948000,-120.25081827,7.598e-05,2]
[422968598,1779693948000,-500.0,7.598e-05,2]
[422968604,1779693948000,-379.74918173,7.598e-05,2]
[422968613,1779693948000,-500.0,7.598e-05,2]
[422968605,1779693948000,-500.0,7.598e-05,2]
[422968617,1779693948000,-251.52276356,7.598e-05,2]
[422968615,1779693948000,-349.22961025,7.598e-05,2]
[422968616,1779693948000,-500.0,7.598e-05,2]
[422968614,1779693948000,-150.77038975,7.598e-05,2]
[422968618,1779693948000,-3899.24762619,7.6e-05,2]
[422968606,1779693948000,-363.2616305,7.598e-05,2]
[422968611,1779693948000,-606.21879802,7.598e-05,2]
[422968612,1779693948000,-500.0,7.598e-05,2]
[422968608,1779693948000,-500.0,7.598e-05,2]
[422968609,1779693948000,-500.0,7.598e-05,2]
[422968607,1779693948000,-500.0,7.598e-05,2]
[422968610,1779693948000,-500.0,7.598e-05,2]
[422968621,1779693949000,-5000.0,7.6e-05,2]
[422968620,1779693949000,-5000.0,7.6e-05,2]
[422968619,1779693949000,-5000.0,7.6e-05,2]
[422968622,1779693950000,-5000.0,7.6e-05,2]
[422968624,1779693950000,-5000.0,7.6e-05,2]
[422968623,1779693950000,-5000.0,7.6e-05,2]
[422968625,1779693951000,-5000.0,7.6e-05,2]
[422968626,1779693951000,-5000.0,7.6e-05,2]
[422968629,1779693952000,-5000.0,7.6e-05,2]
[422968628,1779693952000,-5000.0,7.6e-05,2]
[422968627,1779693952000,-5000.0,7.6e-05,2]
[422968632,1779693953000,-5000.0,7.6e-05,2]
[422968631,1779693953000,-5000.0,7.6e-05,2]
[422968630,1779693953000,-5000.0,7.6e-05,2]
[422968635,1779693954000,-5000.0,7.6e-05,2]
[422968634,1779693954000,-5000.0,7.6e-05,2]
[422968633,1779693954000,-5000.0,7.6e-05,2]
[422968636,1779693955000,-5000.0,7.6e-05,2]
[422968638,1779693960000,-5000.0,7.6e-05,2]
[422968637,1779693960000,-5000.0,7.6e-05,2]
[422968641,1779693961000,-5000.0,7.6e-05,2]
[422968640,1779693961000,-5000.0,7.6e-05,2]
[422968639,1779693961000,-5000.0,7.6e-05,2]
[422968644,1779693962000,-300.0,7.599e-05,2]
[422968645,1779693962000,-4700.0,7.6e-05,2]
[422968643,1779693962000,-5000.0,7.6e-05,2]
[422968642,1779693962000,-5000.0,7.6e-05,2]
[422968647,1779693963000,-5000.0,7.6e-05,2]
[422968646,1779693963000,-5000.0,7.6e-05,2]
[422968650,1779693964000,-5000.0,7.6e-05,2]
[422968649,1779693964000,-5000.0,7.6e-05,2]
[422968648,1779693964000,-5000.0,7.6e-05,2]
[422968651,1779693965000,-5000.0,7.6e-05,2]
[422968653,1779693965000,-5000.0,7.6e-05,2]
[422968652,1779693965000,-5000.0,7.6e-05,2]
[422968656,1779693966000,-5000.0,7.6e-05,2]
[422968655,1779693966000,-5000.0,7.6e-05,2]
[422968654,1779693966000,-5000.0,7.6e-05,2]
[422968658,1779693967000,-5000.0,7.6e-05,2]
[422968657,1779693967000,-5000.0,7.6e-05,2]
[422968659,1779693969000,-5000.0,7.6e-05,2]
[422968660,1779693970000,-5000.0,7.6e-05,2]
[422968661,1779693971000,-5000.0,7.6e-05,2]
[422968662,1779693972000,-4798.07640412,7.6e-05,2]
[422968681,1779694048000,-448.07401227,7.752e-05,2]
[422968704,1779694152000,-300.0,7.828e-05,2]
[422968703,1779694152000,-4551.92598773,7.752e-05,2]
[422968706,1779694152000,-500.0,7.829e-05,2]
[422968709,1779694152000,-310.05569087,7.829e-05,2]
[422968705,1779694152000,-447.05157914,7.829e-05,2]
[422968708,1779694152000,-386.32616305,7.829e-05,2]
[422968710,1779694152000,-332.11173379,7.83e-05,2]
[422968707,1779694152000,-500.0,7.829e-05,2]
[422968717,1779694231000,-406.31779836,7.597e-05,2]
[422968719,1779694232000,-395.18792757,7.597e-05,2]
[422968718,1779694232000,-3283.2454908,7.597e-05,2]
[422968749,1779694238000,-500.0,8.219e-05,2]
[422968748,1779694238000,-500.0,8.219e-05,2]
[422968755,1779694238000,-752.85,8.219e-05,2]
[422968751,1779694238000,-500.0,8.219e-05,2]
[422968746,1779694238000,-500.0,8.219e-05,2]
[422968744,1779694238000,-500.0,8.219e-05,2]
[422968750,1779694238000,-500.0,8.219e-05,2]
[422968747,1779694238000,-561.21708632,8.219e-05,2]
[422968756,1779694238000,-500.0,8.219e-05,2]
[422968757,1779694238000,-500.0,8.219e-05,2]
[422968762,1779694238000,-500.0,8.219e-05,2]
[422968761,1779694238000,-3998.63,8.219e-05,2]
[422968753,1779694238000,-962.4,8.219e-05,2]
[422968763,1779694238000,-849.5,8.219e-05,2]
[422968760,1779694238000,-500.0,8.219e-05,2]
[422968758,1779694238000,-500.0,8.219e-05,2]
[422968764,1779694238000,-500.0,8.219e-05,2]
[422968765,1779694238000,-500.0,8.219e-05,2]
[422968767,1779694238000,-500.0,8.219e-05,2]
[422968768,1779694238000,-500.0,8.219e-05,2]
[422968766,1779694238000,-500.0,8.219e-05,2]
[422968759,1779694238000,-423.91240414,8.219e-05,2]
[422968754,1779694238000,-500.0,8.219e-05,2]
[422968740,1779694238000,-500.0,8.219e-05,2]
[422968745,1779694238000,-500.0,8.219e-05,2]
[422968769,1779694238000,-500.0,8.219e-05,2]
[422968722,1779694238000,-566.27951626,7.597e-05,2]
[422968724,1779694238000,-3271.4140989,7.674e-05,2]
[422968723,1779694238000,-154.03624034,7.673e-05,2]
[422968725,1779694238000,-1728.5859011,7.674e-05,2]
[422968726,1779694238000,-39.9692717,7.751e-05,2]
[422968727,1779694238000,-260.0307283,7.751e-05,2]
[422968728,1779694238000,-2624.31025819,7.752e-05,2]
[422968729,1779694238000,-150.0,7.91e-05,2]
[422968731,1779694238000,-500.0,8.217e-05,2]
[422968752,1779694238000,-500.0,8.219e-05,2]
[422968741,1779694238000,-500.79255613,8.219e-05,2]
[422968732,1779694238000,-302.04721103,8.217e-05,2]
[422968742,1779694238000,-500.0,8.219e-05,2]
[422968743,1779694238000,-500.0,8.219e-05,2]
[422968735,1779694238000,-500.0,8.217e-05,2]
[422968737,1779694238000,-503.25272084,8.219e-05,2]
[422968733,1779694238000,-500.0,8.217e-05,2]
[422968734,1779694238000,-500.0,8.217e-05,2]
[422968736,1779694238000,-500.0,8.219e-05,2]
[422968738,1779694238000,-500.0,8.219e-05,2]
[422968739,1779694238000,-500.0,8.219e-05,2]
[422968730,1779694238000,-500.0,8.217e-05,2]
[422968771,1779694238000,-500.0,8.219e-05,2]
[422968777,1779694238000,-500.0,8.219e-05,2]
[422968770,1779694238000,-500.0,8.219e-05,2]
[422968797,1779694238000,-501.11,8.492e-05,2]
[422968806,1779694238000,-515.42498317,8.493e-05,2]
[422968807,1779694238000,-500.0,8.493e-05,2]
[422968808,1779694238000,-501.57668196,8.493e-05,2]
[422968800,1779694238000,-500.0,8.492e-05,2]
[422968799,1779694238000,-500.0,8.492e-05,2]
[422968809,1779694238000,-500.0,8.493e-05,2]
[422968810,1779694238000,-500.0,8.493e-05,2]
[422968801,1779694238000,-500.0,8.492e-05,2]
[422968802,1779694238000,-500.0,8.493e-05,2]
[422968805,1779694238000,-500.0,8.493e-05,2]
[422968803,1779694238000,-500.0,8.493e-05,2]
[422968813,1779694238000,-962.4,8.493e-05,2]
[422968814,1779694238000,-433.52,8.493e-05,2]
[422968816,1779694238000,-501.44538438,8.493e-05,2]
[422968815,1779694238000,-752.85,8.493e-05,2]
[422968812,1779694238000,-500.0,8.493e-05,2]
[422968820,1779694238000,-849.5,8.493e-05,2]
[422968819,1779694238000,-228.64,8.493e-05,2]
[422968821,1779694238000,-500.0,8.493e-05,2]
[422968817,1779694238000,-500.0,8.493e-05,2]
[422968781,1779694238000,-500.0,8.492e-05,2]
[422968811,1779694238000,-500.0,8.493e-05,2]
[422968798,1779694238000,-500.0,8.492e-05,2]
[422968804,1779694238000,-500.0,8.493e-05,2]
[422968790,1779694238000,-500.0,8.492e-05,2]
[422968782,1779694238000,-500.0,8.492e-05,2]
[422968791,1779694238000,-500.0,8.492e-05,2]
[422968773,1779694238000,-500.0,8.219e-05,2]
[422968772,1779694238000,-500.0,8.219e-05,2]
[422968783,1779694238000,-500.0,8.492e-05,2]
[422968774,1779694238000,-500.0,8.219e-05,2]
[422968775,1779694238000,-225.07087141,8.219e-05,2]
[422968780,1779694238000,-500.0,8.492e-05,2]
[422968818,1779694238000,-3998.63,8.493e-05,2]
[422968779,1779694238000,-500.0,8.219e-05,2]
[422968776,1779694238000,-500.0,8.219e-05,2]
[422968778,1779694238000,-1769.6419014,8.219e-05,2]
[422968785,1779694238000,-500.0,8.492e-05,2]
[422968784,1779694238000,-578.29,8.492e-05,2]
[422968787,1779694238000,-500.0,8.492e-05,2]
[422968792,1779694238000,-500.0,8.492e-05,2]
[422968786,1779694238000,-500.0,8.492e-05,2]
[422968794,1779694238000,-500.0,8.492e-05,2]
[422968793,1779694238000,-500.0,8.492e-05,2]
[422968796,1779694238000,-388.857567,8.492e-05,2]
[422968795,1779694238000,-500.0,8.492e-05,2]
[422968788,1779694238000,-500.0,8.492e-05,2]
[422968789,1779694238000,-500.0,8.492e-05,2]
[422968866,1779694239000,-390.28036842,9.04e-05,2]
[422968864,1779694239000,-500.0,9.04e-05,2]
[422968861,1779694239000,-181.65,8.767e-05,2]
[422968860,1779694239000,-500.0,8.767e-05,2]
[422968859,1779694239000,-500.0,8.767e-05,2]
[422968853,1779694239000,-500.0,8.767e-05,2]
[422968856,1779694239000,-642.01,8.767e-05,2]
[422968858,1779694239000,-849.5,8.767e-05,2]
[422968854,1779694239000,-962.4,8.767e-05,2]
[422968855,1779694239000,-752.85,8.767e-05,2]
[422968870,1779694239000,-616.19147495,9.04e-05,2]
[422968857,1779694239000,-3998.63,8.767e-05,2]
[422968869,1779694239000,-500.0,9.04e-05,2]
[422968879,1779694239000,-400.56,9.041e-05,2]
[422968868,1779694239000,-500.0,9.04e-05,2]
[422968863,1779694239000,-500.0,9.04e-05,2]
[422968862,1779694239000,-500.0,8.767e-05,2]
[422968867,1779694239000,-500.0,9.04e-05,2]
[422968872,1779694239000,-500.0,9.04e-05,2]
[422968871,1779694239000,-500.0,9.04e-05,2]
[422968873,1779694239000,-380.4761174,9.04e-05,2]
[422968881,1779694239000,-500.0,9.041e-05,2]
[422968876,1779694239000,-500.0,9.04e-05,2]
[422968878,1779694239000,-500.0,9.04e-05,2]
[422968875,1779694239000,-500.0,9.04e-05,2]
[422968852,1779694239000,-500.0,8.767e-05,2]
[422968865,1779694239000,-578.29,9.04e-05,2]
[422968851,1779694239000,-500.0,8.767e-05,2]
[422968831,1779694239000,-500.0,8.766e-05,2]
[422968850,1779694239000,-295.18,8.767e-05,2]
[422968824,1779694239000,-500.0,8.493e-05,2]
[422968822,1779694239000,-643.67,8.493e-05,2]
[422968823,1779694239000,-500.0,8.493e-05,2]
[422968825,1779694239000,-500.0,8.493e-05,2]
[422968827,1779694239000,-505.58019729,8.493e-05,2]
[422968877,1779694239000,-500.0,9.04e-05,2]
[422968826,1779694239000,-500.0,8.493e-05,2]
[422968828,1779694239000,-1929.13236978,8.5e-05,7]
[422968832,1779694239000,-578.29,8.766e-05,2]
[422968833,1779694239000,-500.0,8.766e-05,2]
[422968829,1779694239000,-420.0,8.526e-05,2]
[422968834,1779694239000,-500.0,8.766e-05,2]
[422968830,1779694239000,-500.0,8.766e-05,2]
[422968835,1779694239000,-500.0,8.766e-05,2]
[422968837,1779694239000,-500.0,8.766e-05,2]
[422968838,1779694239000,-500.0,8.766e-05,2]
[422968842,1779694239000,-500.0,8.766e-05,2]
[422968841,1779694239000,-500.0,8.766e-05,2]
[422968836,1779694239000,-500.0,8.766e-05,2]
[422968839,1779694239000,-500.0,8.766e-05,2]
[422968840,1779694239000,-500.0,8.766e-05,2]
[422968844,1779694239000,-500.0,8.766e-05,2]
[422968845,1779694239000,-500.0,8.766e-05,2]
[422968843,1779694239000,-500.0,8.766e-05,2]
[422968846,1779694239000,-500.0,8.767e-05,2]
[422968847,1779694239000,-500.0,8.767e-05,2]
[422968849,1779694239000,-175.65,8.767e-05,2]
[422968848,1779694239000,-500.0,8.767e-05,2]
[422968880,1779694239000,-500.0,9.041e-05,2]
[422968874,1779694239000,-500.0,9.04e-05,2]
[422968882,1779694239000,-500.0,9.041e-05,2]
[422968913,1779694239000,-500.0,9.253e-05,2]
[422968919,1779694239000,-500.0,9.253e-05,2]
[422968918,1779694239000,-500.0,9.253e-05,2]
[422968917,1779694239000,-500.0,9.253e-05,2]
[422968921,1779694239000,-500.0,9.253e-05,2]
[422968920,1779694239000,-500.0,9.253e-05,2]
[422968923,1779694239000,-500.0,9.253e-05,2]
[422968934,1779694239000,-364.08951944,9.253e-05,2]
[422968933,1779694239000,-500.0,9.253e-05,2]
[422968927,1779694239000,-500.0,9.253e-05,2]
[422968922,1779694239000,-500.0,9.253e-05,2]
[422968928,1779694239000,-500.0,9.253e-05,2]
[422968929,1779694239000,-500.0,9.253e-05,2]
[422968924,1779694239000,-500.0,9.253e-05,2]
[422968932,1779694239000,-500.0,9.253e-05,2]
[422968926,1779694239000,-639.8865092,9.253e-05,2]
[422968930,1779694239000,-500.708008,9.253e-05,2]
[422968931,1779694239000,-500.0,9.253e-05,2]
[422968935,1779694239000,-500.0,9.253e-05,2]
[422968937,1779694239000,-668.0,9.253e-05,2]
[422968938,1779694239000,-500.0,9.253e-05,2]
[422968942,1779694239000,-500.0,9.253e-05,2]
[422968941,1779694239000,-500.0,9.253e-05,2]
[422968939,1779694239000,-500.0,9.253e-05,2]
[422968940,1779694239000,-500.0,9.253e-05,2]
[422968936,1779694239000,-500.0,9.253e-05,2]
[422968883,1779694239000,-500.0,9.041e-05,2]
[422968912,1779694239000,-500.0,9.253e-05,2]
[422968916,1779694239000,-555.43,9.253e-05,2]
[422968925,1779694239000,-500.0,9.253e-05,2]
[422968910,1779694239000,-500.0,9.253e-05,2]
[422968885,1779694239000,-962.4,9.041e-05,2]
[422968915,1779694239000,-500.0,9.253e-05,2]
[422968884,1779694239000,-500.0,9.041e-05,2]
[422968896,1779694239000,-500.0,9.253e-05,2]
[422968888,1779694239000,-849.5,9.041e-05,2]
[422968891,1779694239000,-489.86,9.041e-05,2]
[422968889,1779694239000,-500.0,9.041e-05,2]
[422968887,1779694239000,-3998.63,9.041e-05,2]
[422968895,1779694239000,-500.0,9.253e-05,2]
[422968890,1779694239000,-500.0,9.041e-05,2]
[422968893,1779694239000,-573.2,9.253e-05,2]
[422968892,1779694239000,-151.62656856,9.253e-05,2]